fUSD/lending_fUSD_20240821
["ID","MTS","AMOUNT","RATE_DAILY","PERIOD"]
[335475183,1724255440336,-500.0,0.00014794,2]
[335475184,1724255440347,-500.0,0.00014794,2]
[335475185,1724255440357,-1157.71,0.00014794,2]
[335475186,1724255440366,-155.00399526,0.00014794,2]
[335475187,1724255440376,-2818.92,0.00014794,2]
[335475188,1724255440386,-500.0,0.00014794,2]
[335475189,1724255440395,-500.0,0.00014794,2]
[335475190,1724255440404,-1226.7,0.00014794,2]
[335475191,1724255440413,-636.88,0.00014794,2]
[335475192,1724255440423,-1242.39,0.00014794,2]
[335475193,1724255440432,-500.0,0.00014794,2]
[335475194,1724255440441,-500.0,0.00014794,2]
[335475195,1724255440451,-500.0,0.00014794,2]
[335475196,1724255440461,-538.23526198,0.00014794,2]
[335475197,1724255440470,-838.84,0.00014794,2]
[335475198,1724255440479,-1077.04,0.00014794,2]
[335475199,1724255440488,-500.0,0.00014794,2]
[335475200,1724255440497,-588.81,0.00014794,2]
[335475201,1724255440506,-500.0,0.00014794,2]
[335475202,1724255440516,-725.44,0.00014794,2]
[335475203,1724255440527,-500.0,0.00014794,2]
[335475204,1724255440536,-1270.82,0.00014794,2]
[335475205,1724255440545,-649.15,0.00014794,2]
[335475206,1724255440555,-500.0,0.00014794,2]
[335475207,1724255440567,-1429.33,0.00014794,2]
[335475208,1724255440577,-1646.18,0.00014794,2]
[335475209,1724255440586,-3078.83,0.00014794,2]
[335475210,1724255440595,-529.60223034,0.00014794,2]
[335475211,1724255440605,-500.0,0.00014794,2]
[335475212,1724255440614,-500.0,0.00014794,2]
[335475213,1724255440623,-500.0,0.00014794,2]
[335475214,1724255440632,-500.0,0.00014794,2]
[335475215,1724255440642,-500.0,0.00014794,2]
[335475216,1724255440651,-514.72649647,0.00014794,2]
[335475217,1724255440660,-500.0,0.00014794,2]
[335475218,1724255440669,-3008.92,0.00014794,2]
[335475219,1724255440678,-500.0,0.00014794,2]
[335475220,1724255440687,-500.0,0.00014794,2]
[335475221,1724255440696,-500.0,0.00014794,2]
[335475222,1724255440705,-500.0,0.00014794,2]
[335475223,1724255440714,-3197.28,0.00014794,2]
[335475224,1724255440723,-526.7217598,0.00014794,2]
[335475225,1724255440733,-500.0,0.00014794,2]
[335475226,1724255440742,-500.0,0.00014794,2]
[335475227,1724255440751,-500.0,0.00014794,2]
[335475228,1724255440760,-556.7,0.00014794,2]
[335475229,1724255440769,-560.7,0.00014794,2]
[335475230,1724255440778,-959.58,0.00014794,2]
[335475231,1724255440789,-500.0,0.00014794,2]
[335475232,1724255440798,-326.93621223,0.00014794,2]
[335475233,1724255441055,-500.0,0.0001476,2]
[335475234,1724255441067,-173.06378777,0.00014794,2]
[335475235,1724255441076,-3870.83,0.00014794,2]
[335475236,1724255441085,-692.55340996,0.00014794,2]
[335475237,1724255441096,-2463.41659004,0.00014794,2]
[335475238,1724255441105,-1868.56,0.00014794,2]
[335475239,1724255441114,-1929.46,0.00014794,2]
[335475240,1724255441123,-799.26,0.00014794,2]
[335475241,1724255441132,-500.0,0.00014794,2]
[335475242,1724255441142,-1816.93,0.00014794,2]
[335475243,1724255441151,-500.0,0.00014794,2]
[335475244,1724255441160,-1269.32488149,0.00014794,2]
[335475245,1724255441188,-594.67731106,0.00013698,2]
[335475246,1724255441199,-251.35461498,0.00013698,2]
[335475247,1724255441213,-1567.33807396,0.00013698,2]
[335475248,1724255441222,-526.27,0.0001452,2]
[335475249,1724255441231,-1255.03731106,0.00014794,2]
[335475253,1724255442591,-500.0,0.00013971,2]
[335475254,1724255442601,-2413.37,0.00013972,2]
[335475255,1724255442610,-500.0,0.00014245,2]
[335475256,1724255442620,-1571.7101,0.00014246,2]
[335475257,1724255442631,-841.6599,0.00014246,2]
[335475258,1724255442641,-429.23626337,0.00014519,2]
[335475259,1724255442678,-70.76373663,0.00014519,2]
[335475260,1724255442687,-460.30556703,0.0001452,2]
[335475261,1724255442700,-297.48711185,0.0001452,2]
[335475262,1724255442711,-1655.57732112,0.0001452,2]
[335475263,1724255442721,-500.0,0.00014793,2]
[335475264,1724255442730,-177.29144264,0.00014794,2]
[335475265,1724255442756,-1001.4719,0.00014794,2]
[335475266,1724255442767,-1575.43818511,0.00014794,2]
[335475267,1724255442841,-1456.0112495,0.00014794,2]
[335475302,1724255443348,-977.5850302,0.00014794,2]
[335475304,1724255443358,-500.0,0.00014794,2]
[335475306,1724255443368,-500.0,0.00014794,2]
[335475308,1724255443377,-133.08065405,0.00014794,2]
[335475333,1724255443898,-577.08934595,0.00014794,2]
[335475334,1724255443908,-500.0,0.00014794,2]
[335475335,1724255443918,-2992.65,0.00014794,2]
[335475336,1724255443930,-4409.89650452,0.00014794,2]
[335475337,1724255443947,-1422.60349548,0.00014794,2]
[335475338,1724255443956,-545.97200686,0.00014794,2]
[335475339,1724255443966,-346.00495342,0.00014794,2]
[335475340,1724255443975,-9718.73850424,0.00014794,2]
[335475341,1724255443999,-155.0,0.00014235,2]
[335475342,1724255444008,-1385.0000006,0.00014794,2]
[335475343,1724255444019,-1216.49149516,0.00014794,2]
[335475344,1724255444029,-500.0,0.00014794,2]
[335475345,1724255444038,-4008.37,0.00014794,2]
[335475346,1724255444047,-281.13850484,0.00014794,2]
[335475373,1724255445687,155.0,0.00013971,2]
[335475374,1724255457317,-260.0,0.00013939,2]
[335475375,1724255457343,-3866.85914449,0.00013598,2]
[335475376,1724255457353,-648.45221928,0.00013598,2]
[335475377,1724255457389,-529.32323623,0.00013598,2]
[335475378,1724255457409,-547.67676377,0.00013939,2]
[335475379,1724255458785,-418.8312495,0.00013698,2]
[335475380,1724255476121,-392.49,0.00012008,2]
[335475381,1724255533546,-485.07840464,0.00012008,2]
[335475382,1724255534911,-413.35824992,0.00012008,2]
[335475383,1724255557054,-300.1872949,0.00012008,2]
[335475384,1724255558942,-155.0,0.00012008,2]
[335475385,1724255561932,-250.88951447,0.00012008,2]
[335475386,1724255563951,181.97999253,0.00012008,2]
[335475387,1724255568858,-170.36289186,0.00012008,2]
[335475388,1724255596367,-154.95,0.00010959,2]
[335475389,1724255619553,-485.07840464,0.00012008,2]
[335475390,1724255624812,-413.35824992,0.00012008,2]
[335475391,1724255641935,-214.29963205,0.00010959,2]
[335475392,1724255651859,-250.74267249,0.00011,2]
[335475393,1724255656294,250.74267249,0.00010959,2]
[335475394,1724255677301,-49.44462241,0.00010959,2]
[335475395,1724255677320,-181.97999253,0.00010959,2]
[335475396,1724255708621,-1049.88865465,0.0001,2]
[335475397,1724255762567,-0.11134535,0.0001,2]
[335475398,1724255762589,-190.12412072,0.0001,2]
[335475399,1724255762778,-205.17453393,0.0001,2]
[335475400,1724255774242,-89.77974999,0.0001,2]
[335475401,1724255774263,-97.53571608,0.0001,2]
[335475402,1724255774620,-205.17453393,0.0001,2]
[335475403,1724256458174,150.0,9e-05,2]
[335475404,1724256458193,140.0,9e-05,2]
[335475406,1724256540247,-110.64799991,0.0001,2]
[335475407,1724256540274,-261.95631048,0.0001,2]
[335475412,1724256631725,-38.23098442,0.0001,2]
[335475413,1724256631735,-181.92300497,0.0001,2]
[335475414,1724256631744,-485.07840464,0.0001,2]
[335475415,1724256631755,-408.54,0.00010244,2]
[335475416,1724256631770,-3749.0,0.00010861,2]
[335475417,1724256631780,-264.6397361,0.00010862,2]
[335475418,1724256631789,-300.0,0.00010887,2]
[335475419,1724256631799,-300.0,0.00010887,2]
[335475420,1724256631810,-1172.95960981,0.00010888,2]
[335475421,1724256631833,-568.0927404,0.00010888,2]
[335475422,1724256631843,-160.35,0.00010959,2]
[335475423,1724256631852,-9278.00363705,0.00010999,2]
[335475424,1724256631862,-420.0,0.00011965,2]
[335475425,1724256631871,-499.99,0.00011965,2]
[335475426,1724256631881,-420.0,0.00011975,2]
[335475427,1724256631891,-1100.0,0.00012,2]
[335475428,1724256631901,-2000.0,0.00012061,2]
[335475429,1724256631910,-1350.0,0.00012089,2]
[335475430,1724256631920,-413.35824992,0.00012121,2]
[335475431,1724256631929,-150.0,0.00012127,2]
[335475432,1724256631938,-160.46,0.00012162,2]
[335475433,1724256631948,-250.0,0.00012282,2]
[335475434,1724256631959,-1000.0,0.00012286,2]
[335475435,1724256631969,-1500.0,0.000123,2]
[335475436,1724256631978,-175.14,0.00012324,2]
[335475437,1724256631988,-634.67,0.00012359,2]
[335475438,1724256631997,-499.95,0.00012429,2]
[335475439,1724256632009,-250.0,0.00012486,2]
[335475440,1724256632018,-5740.22,0.00012507,2]
[335475441,1724256632027,-408.54,0.00012508,2]
[335475442,1724256632036,-271.0,0.0001277,2]
[335475443,1724256632046,-249.71314614,0.00012966,2]
[335475444,1724256632055,-259.89,0.00012967,2]
[335475445,1724256632065,-150.0,0.00012967,2]
[335475446,1724256632075,-1347.77191055,0.00013001,2]
[335475447,1724256632084,-280.7111726,0.00013001,2]
[335475448,1724256632094,-419.19606266,0.00013042,2]
[335475449,1724256632103,-206.0070509,0.00013042,2]
[335475451,1724256632113,-155.0,0.00013042,2]
[335475452,1724256632122,-150.0,0.00013044,2]
[335475454,1724256632132,-271.0,0.000131,2]
[335475455,1724256632141,-450.0,0.00013149,2]
[335475456,1724256632152,-12316.28111925,0.000132,2]
[335475457,1724256632161,-155.34326008,0.00013292,2]
[335475458,1724256632171,-271.0,0.0001342,2]
[335475459,1724256632180,-854.352,0.00013534,2]
[335475460,1724256632190,-3727.0,0.00013534,2]
[335475461,1724256632199,-289.0,0.00013534,2]
[335475462,1724256632208,-1668.507,0.00013534,2]
[335475463,1724256632218,-3236.1997,0.00013598,2]
[335475464,1724256632227,-526.89163581,0.00013688,2]
[335475465,1724256632237,-500.0,0.00013698,2]
[335475466,1724256632246,-500.0,0.00013698,5]
[335475467,1724256632257,-500.0,0.00013698,2]
[335475468,1724256632267,-600.07020207,0.00013698,2]
[335475469,1724256632276,-500.0,0.00013698,2]
[335475470,1724256632286,-2035.48,0.00013698,2]
[335475471,1724256632295,-916.52,0.00013698,2]
[335475472,1724256632305,-500.0,0.00013698,2]
[335475473,1724256632315,-2231.64,0.00013698,2]
[335475474,1724256632325,-971.14,0.00013698,2]
[335475475,1724256632339,-504.19,0.00013698,2]
[335475476,1724256632348,-500.0,0.00013698,2]
[335475477,1724256632358,-2171.46,0.00013698,2]
[335475478,1724256632367,-500.0,0.00013698,2]
[335475479,1724256632379,-500.0,0.00013698,2]
[335475480,1724256632389,-983.56,0.00013698,2]
[335475481,1724256632399,-500.0,0.00013698,2]
[335475482,1724256632409,-500.0,0.00013698,2]
[335475483,1724256632419,-500.0,0.00013698,2]
[335475484,1724256632428,-500.0,0.00013698,2]
[335475485,1724256632437,-500.0,0.00013698,2]
[335475486,1724256632446,-500.0,0.00013698,2]
[335475487,1724256632456,-500.0,0.00013698,2]
[335475488,1724256632465,-500.0,0.00013698,2]
[335475489,1724256632474,-2411.52,0.00013698,2]
[335475490,1724256632484,-271.0,0.0001374,2]
[335475491,1724256632494,-1000.0,0.00013822,2]
[335475492,1724256632505,-4674.3103175,0.00013866,2]
[335475493,1724256632516,-184.95513278,0.00013871,2]
[335475494,1724256632527,-500.0,0.00013948,2]
[335475495,1724256632537,-220.64,0.0001396,3]
[335475496,1724256632548,-661.96,0.0001396,3]
[335475497,1724256632557,-623.0,0.00013966,2]
[335475498,1724256632567,-1923.0,0.00013966,2]
[335475499,1724256632577,-1544.0,0.00013966,2]
[335475500,1724256632586,-1258.0,0.00013966,2]
[335475501,1724256632596,-810.0,0.00013966,2]
[335475502,1724256632606,-447.0,0.00013966,2]
[335475503,1724256632616,-556.0,0.00013966,2]
[335475504,1724256632626,-551.0,0.00013966,2]
[335475505,1724256632635,-1896.0,0.00013966,2]
[335475506,1724256632645,-3319.0,0.00013966,2]
[335475507,1724256632654,-247.0,0.00013966,2]
[335475508,1724256632664,-1165.0,0.00013966,2]
[335475509,1724256632673,-764.0,0.00013966,2]
[335475510,1724256632682,-500.0,0.0001397,2]
[335475511,1724256632692,-500.0,0.0001397,2]
[335475512,1724256632701,-500.0,0.0001397,2]
[335475513,1724256632710,-675.43,0.0001397,2]
[335475514,1724256632719,-500.0,0.0001397,2]
[335475515,1724256632729,-500.0,0.0001397,2]
[335475516,1724256632738,-500.0,0.0001397,2]
[335475517,1724256632747,-574.3,0.0001397,2]
[335475518,1724256632760,-664.08,0.0001397,2]
[335475519,1724256632770,-1060.99,0.0001397,2]
[335475520,1724256632779,-500.0,0.0001397,2]
[335475521,1724256632788,-500.0,0.0001397,2]
[335475522,1724256632798,-1006.07,0.0001397,2]
[335475523,1724256632807,-1303.23,0.0001397,2]
[335475524,1724256632817,-513.91,0.0001397,2]
[335475525,1724256632826,-1131.55,0.0001397,2]
[335475526,1724256632835,-500.0,0.0001397,2]
[335475527,1724256632844,-2437.4,0.0001397,2]
[335475528,1724256632853,-500.0,0.0001397,2]
[335475529,1724256632863,-500.0,0.0001397,2]
[335475530,1724256632872,-500.0,0.0001397,2]
[335475531,1724256632881,-181.95848675,0.0001397,2]
[335475532,1724256632891,-562.22,0.0001397,2]
[335475533,1724256632900,-500.0,0.0001397,2]
[335475534,1724256632909,-500.0,0.0001397,2]
[335475535,1724256632918,-500.0,0.0001397,2]
[335475536,1724256632927,-2531.18,0.0001397,2]
[335475537,1724256632937,-759.67,0.0001397,2]
[335475538,1724256632946,-500.0,0.0001397,2]
[335475539,1724256632957,-2498.48,0.0001397,2]
[335475540,1724256632967,-500.0,0.0001397,2]
[335475541,1724256632977,-500.0,0.0001397,2]
[335475542,1724256632986,-500.0,0.0001397,2]
[335475543,1724256632996,-1527.49,0.0001397,2]
[335475544,1724256633007,-500.0,0.0001397,2]
[335475545,1724256633017,-500.0,0.0001397,2]
[335475546,1724256633028,-1585.7,0.0001397,2]
[335475547,1724256633037,-500.0,0.0001397,2]
[335475548,1724256633047,-500.0,0.0001397,2]
[335475549,1724256633056,-1043.18,0.0001397,2]
[335475550,1724256633066,-1190.27,0.0001397,2]
[335475551,1724256633076,-500.0,0.0001397,2]
[335475552,1724256633086,-3084.9,0.0001397,2]
[335475553,1724256633096,-2039.01,0.0001397,2]
[335475554,1724256633107,-740.78,0.0001397,2]
[335475555,1724256633117,-500.0,0.0001397,2]
[335475556,1724256633126,-500.0,0.0001397,2]
[335475557,1724256633137,-1501.76,0.0001397,2]
[335475558,1724256633147,-3170.14,0.0001397,2]
[335475559,1724256633158,-807.05,0.0001397,2]
[335475560,1724256633168,-500.0,0.0001397,2]
[335475561,1724256633178,-500.0,0.0001397,2]
[335475562,1724256633189,-608.56,0.0001397,2]
[335475563,1724256633199,-5685.89,0.0001397,2]
[335475564,1724256633356,-590.01,0.0001397,2]
[335475565,1724256633366,-746.2,0.0001397,2]
[335475566,1724256633378,-773.68,0.0001397,2]
[335475567,1724256633388,-500.0,0.0001397,2]
[335475568,1724256633398,-3049.25,0.0001397,2]
[335475569,1724256633408,-693.52,0.0001397,2]
[335475570,1724256633623,-500.0,0.0001397,2]
[335475571,1724256633633,-4151.66,0.0001397,2]
[335475572,1724256633644,-500.0,0.0001397,2]
[335475573,1724256633653,-2258.44,0.0001397,2]
[335475574,1724256633663,-626.73,0.0001397,2]
[335475575,1724256633673,-1399.92,0.0001397,2]
[335475576,1724256633682,-500.0,0.0001397,2]
[335475577,1724256633692,-13576.24,0.0001397,2]
[335475578,1724256633702,-500.0,0.0001397,2]
[335475579,1724256633712,-500.0,0.0001397,2]
[335475580,1724256633721,-9124.29,0.0001397,2]
[335475581,1724256633730,-500.0,0.0001397,2]
[335475582,1724256633739,-654.24,0.0001397,2]
[335475583,1724256633748,-500.0,0.0001397,2]
[335475584,1724256633759,-601.35,0.0001397,2]
[335475585,1724256633768,-1306.73,0.0001397,2]
[335475586,1724256633778,-818.53,0.0001397,2]
[335475587,1724256633787,-553.82,0.0001397,2]
[335475588,1724256633797,-618.2,0.0001397,2]
[335475589,1724256633806,-500.0,0.0001397,2]
[335475590,1724256633815,-5995.67,0.0001397,2]
[335475591,1724256633824,-1020.07,0.0001397,2]
[335475592,1724256633834,-500.0,0.0001397,2]
[335475593,1724256633843,-500.0,0.0001397,2]
[335475594,1724256633853,-3328.31,0.0001397,2]
[335475595,1724256633863,-500.0,0.0001397,2]
[335475596,1724256633873,-500.0,0.0001397,2]
[335475597,1724256633882,-964.1,0.0001397,2]
[335475598,1724256633892,-500.0,0.0001397,2]
[335475599,1724256633902,-1814.12,0.0001397,2]
[335475600,1724256633912,-1938.2,0.0001397,2]
[335475601,1724256633923,-500.0,0.0001397,2]
[335475602,1724256633933,-500.0,0.0001397,2]
[335475603,1724256633943,-2253.96,0.0001397,2]
[335475604,1724256633954,-500.0,0.0001397,2]
[335475605,1724256633964,-1388.09,0.0001397,2]
[335475606,1724256633975,-2139.97,0.0001397,2]
[335475607,1724256633985,-500.0,0.0001397,2]
[335475608,1724256633995,-1565.25,0.0001397,2]
[335475609,1724256634006,-657.06,0.0001397,2]
[335475610,1724256634016,-878.72,0.0001397,2]
[335475611,1724256634025,-1934.41,0.0001397,2]
[335475612,1724256634034,-696.72,0.0001397,2]
[335475613,1724256634044,-314.15734685,0.0001397,2]
[335475614,1724256634053,-241.92,0.0001397,2]
[335475615,1724256634063,-500.0,0.0001397,2]
[335475616,1724256634072,-2929.56,0.0001397,2]
[335475617,1724256634083,-1317.36,0.0001397,2]
[335475618,1724256634092,-988.09,0.0001397,2]
[335475619,1724256634102,-3870.23,0.0001397,2]
[335475620,1724256634112,-13173.13,0.0001397,2]
[335475621,1724256634122,-500.0,0.0001397,2]
[335475622,1724256634132,-500.0,0.0001397,2]
[335475623,1724256634142,-1003.0,0.0001397,2]
[335475624,1724256634152,-500.0,0.0001397,2]
[335475625,1724256634162,-1586.95,0.0001397,2]
[335475626,1724256634172,-500.0,0.00013971,2]
[335475627,1724256634182,-500.0,0.00013971,2]
[335475628,1724256634193,-500.0,0.00013971,2]
[335475629,1724256634203,-500.0,0.00013971,2]
[335475630,1724256634213,-500.0,0.00013971,2]
[335475631,1724256634223,-500.0,0.00013971,2]
[335475632,1724256634233,-500.0,0.00013971,2]
[335475633,1724256634243,-500.0,0.00013971,2]
[335475634,1724256634253,-500.0,0.00013971,2]
[335475635,1724256634268,-500.0,0.00013971,2]
[335475636,1724256634279,-500.0,0.00013971,2]
[335475637,1724256634290,-500.0,0.00013971,2]
[335475638,1724256634300,-500.0,0.00013971,2]
[335475639,1724256634311,-500.0,0.00013971,2]
[335475640,1724256634320,-500.0,0.00013971,2]
[335475641,1724256634332,-500.0,0.00013971,2]
[335475642,1724256634341,-131.20922162,0.00013971,2]
[335475643,1724256634372,-368.79077838,0.00013971,2]
[335475644,1724256634382,-500.0,0.00013971,2]
[335475645,1724256634391,-632.74,0.00013971,2]
[335475646,1724256634402,-500.0,0.00013971,2]
[335475647,1724256634414,-500.0,0.00013971,2]
[335475648,1724256634424,-562.22,0.00013971,2]
[335475649,1724256634433,-631.6,0.00013971,2]
[335475650,1724256634443,-4396.83,0.00013971,2]
[335475651,1724256634452,-500.0,0.00013971,2]
[335475652,1724256634462,-500.0,0.00013971,2]
[335475653,1724256634472,-500.0,0.00013971,2]
[335475654,1724256634481,-3064.41,0.00013971,2]
[335475655,1724256634491,-1479.27,0.00013971,2]
[335475656,1724256634500,-500.0,0.00013971,2]
[335475657,1724256634511,-1438.4,0.00013971,2]
[335475658,1724256634520,-6374.46,0.00013971,2]
[335475659,1724256634530,-2369.18,0.00013971,2]
[335475660,1724256634539,-4617.4,0.00013971,2]
[335475661,1724256634548,-9753.51,0.00013971,2]
[335475662,1724256634558,-3173.3,0.00013971,2]
[335475663,1724256634568,-3307.33,0.00013971,2]
[335475664,1724256634577,-717.13,0.00013971,2]
[335475665,1724256634587,-505.61123302,0.00013971,2]
[335475666,1724256634597,-500.0,0.00013971,2]
[335475667,1724256634606,-568.21767538,0.00013971,2]
[335475668,1724256634616,-500.0,0.00013971,2]
[335475669,1724256634626,-500.0,0.00013971,2]
[335475670,1724256634635,-500.0,0.00013971,2]
[335475671,1724256634645,-500.0,0.00013971,2]
[335475672,1724256634654,-500.0,0.00013971,2]
[335475673,1724256634664,-369.12353291,0.00013971,2]
[335475674,1724256634673,-500.0,0.00013971,2]
[335475675,1724256634682,-500.0,0.00013971,2]
[335475676,1724256634691,-500.0,0.00013971,2]
[335475677,1724256634701,-500.0,0.00013971,2]
[335475678,1724256634711,-500.0,0.00013971,2]
[335475679,1724256634720,-500.0,0.00013971,2]
[335475680,1724256634729,-500.0,0.00013971,2]
[335475681,1724256634742,-500.0,0.00013971,2]
[335475682,1724256634757,-500.0,0.00013971,2]
[335475683,1724256634771,-500.0,0.00013971,2]
[335475684,1724256634783,-500.0,0.00013971,2]
[335475685,1724256634796,-500.0,0.00013971,2]
[335475686,1724256634810,-500.0,0.00013971,2]
[335475687,1724256634822,-500.0,0.00013971,2]
[335475688,1724256634836,-500.0,0.00013971,2]
[335475689,1724256634848,-500.0,0.00013971,2]
[335475690,1724256634862,-500.0,0.00013971,2]
[335475691,1724256634876,-500.0,0.00013971,2]
[335475692,1724256634888,-500.0,0.00013971,2]
[335475693,1724256634900,-500.0,0.00013971,2]
[335475694,1724256634912,-500.0,0.00013971,2]
[335475695,1724256634925,-500.0,0.00013971,2]
[335475696,1724256634938,-500.0,0.00013971,2]
[335475697,1724256634950,-500.0,0.00013971,2]
[335475698,1724256634962,-500.0,0.00013971,2]
[335475699,1724256634973,-500.0,0.00013971,2]
[335475700,1724256634985,-500.0,0.00013971,2]
[335475701,1724256634997,-500.0,0.00013971,2]
[335475702,1724256635011,-500.0,0.00013971,2]
[335475703,1724256635027,-500.0,0.00013971,2]
[335475704,1724256635040,-500.0,0.00013971,2]
[335475705,1724256635054,-500.0,0.00013971,2]
[335475706,1724256635068,-500.0,0.00013971,2]
[335475707,1724256635082,-500.0,0.00013971,2]
[335475708,1724256635093,-500.0,0.00013971,2]
[335475709,1724256635103,-500.0,0.00013971,2]
[335475710,1724256635115,-500.0,0.00013971,2]
[335475711,1724256635128,-500.0,0.00013971,2]
[335475712,1724256635141,-500.0,0.00013971,2]
[335475713,1724256635153,-500.0,0.00013971,2]
[335475714,1724256635166,-500.0,0.00013971,2]
[335475715,1724256635178,-443.04009944,0.00013971,2]
[335475716,1724256635190,-500.0,0.00013971,2]
[335475717,1724256635202,-580.83,0.00013971,2]
[335475718,1724256635212,-419.36762302,0.00013971,2]
[335475719,1724256635226,-404.84237698,0.00013971,2]
[335475720,1724256635240,-1682.1,0.00013971,2]
[335475721,1724256635252,-4881.52,0.00013971,2]
[335475722,1724256635266,-2142.18,0.00013971,2]
[335475723,1724256635278,-500.0,0.00013971,2]
[335475724,1724256635290,-9342.02,0.00013971,2]
[335475725,1724256635301,-561.31,0.00013971,2]
[335475726,1724256635312,-24924.22,0.00013971,2]
[335475727,1724256635324,-500.0,0.00013971,2]
[335475728,1724256635339,-551.28,0.00013971,2]
[335475729,1724256635350,-1270.28,0.00013971,2]
[335475730,1724256635361,-500.0,0.00013972,2]
[335475731,1724256635374,-489.70141616,0.00013972,5]
[335475732,1724256635384,-500.0,0.00013972,2]
[335475733,1724256635396,-500.0,0.00013972,2]
[335475734,1724256635408,-2035.48,0.00013972,2]
[335475735,1724256635420,-916.52,0.00013972,2]
[335475736,1724256635431,-315.57,0.00013972,2]
[335475737,1724256635442,-2231.64,0.00013972,2]
[335475738,1724256635454,-971.14,0.00013972,2]
[335475739,1724256635465,-504.19,0.00013972,2]
[335475740,1724256635476,-500.0,0.00013972,2]
[335475741,1724256635488,-2171.46,0.00013972,2]
[335475742,1724256635499,-500.0,0.00013972,2]
[335475743,1724256635510,-500.0,0.00013972,2]
[335475744,1724256635521,-983.56,0.00013972,2]
[335475745,1724256635533,-500.0,0.00013972,2]
[335475746,1724256635544,-500.0,0.00013972,2]
[335475747,1724256635555,-500.0,0.00013972,2]
[335475748,1724256635566,-500.0,0.00013972,2]
[335475749,1724256635578,-500.0,0.00013972,2]
[335475750,1724256635589,-500.0,0.00013972,2]
[335475751,1724256635601,-500.0,0.00013972,2]
[335475752,1724256635612,-500.0,0.00013972,2]
[335475753,1724256635625,-2411.52,0.00013972,2]
[335475754,1724256635638,-271.0,0.0001406,2]
[335475755,1724256635649,-306.31409132,0.00014144,2]
[335475756,1724256635662,-7125.38326211,0.00014242,2]
[335475757,1724256635673,-500.0,0.00014244,2]
[335475758,1724256635684,-500.0,0.00014244,2]
[335475759,1724256635694,-500.0,0.00014244,2]
[335475760,1724256635705,-675.43,0.00014244,2]
[335475761,1724256635717,-500.0,0.00014244,2]
[335475762,1724256635728,-500.0,0.00014244,2]
[335475763,1724256635739,-531.98917669,0.00014244,2]
[335475764,1724256635750,-574.3,0.00014244,2]
[335475765,1724256635763,-664.08,0.00014244,2]
[335475766,1724256635774,-1060.99,0.00014244,2]
[335475767,1724256635785,-500.0,0.00014244,2]
[335475768,1724256635796,-500.0,0.00014244,2]
[335475769,1724256635807,-1006.07,0.00014244,2]
[335475770,1724256635819,-1303.23,0.00014244,2]
[335475771,1724256635830,-513.91,0.00014244,2]
[335475772,1724256635841,-500.0,0.00014244,2]
[335475773,1724256635853,-1131.55,0.00014244,2]
[335475774,1724256635864,-2437.4,0.00014244,2]
[335475775,1724256635875,-500.0,0.00014244,2]
[335475776,1724256635887,-234.70823027,0.00014244,2]
[335475777,1724256635899,-500.0,0.00014244,2]
[335475778,1724256635910,-562.22,0.00014244,2]
[335475779,1724256635923,-500.0,0.00014244,2]